fUSD/lending_fUSD_20250108
["ID","MTS","AMOUNT","RATE_DAILY","PERIOD"]
[348187317,1736373048559,-2328.78,0.00011095,2]
[348187319,1736373048569,-2289.73,0.00011095,2]
[348187322,1736373048579,-500.0,0.00011095,2]
[348187323,1736373048588,-1908.11,0.00011095,2]
[348187326,1736373048598,-607.08,0.00011095,2]
[348187328,1736373048607,-500.0,0.00011095,2]
[348187330,1736373048617,-500.0,0.00011095,2]
[348187332,1736373048627,-500.0,0.00011095,2]
[348187334,1736373048637,-1282.71,0.00011095,2]
[348187336,1736373048647,-1241.02,0.00011095,2]
[348187338,1736373048657,-1035.45,0.00011095,2]
[348187340,1736373048667,-500.0,0.00011095,2]
[348187342,1736373048677,-500.0,0.00011095,2]
[348187344,1736373048687,-744.89,0.00011095,2]
[348187346,1736373048698,-1408.11,0.00011095,2]
[348187348,1736373048708,-158.61,0.00011095,2]
[348187350,1736373048718,-755.08,0.00011095,2]
[348187352,1736373048728,-500.0,0.00011095,2]
[348187354,1736373048738,-500.0,0.00011095,2]
[348187356,1736373048748,-533.24,0.00011095,2]
[348187358,1736373048758,-500.0,0.00011095,2]
[348187359,1736373048768,-500.0,0.00011095,2]
[348187360,1736373048778,-755.48,0.00011095,2]
[348187361,1736373048787,-1800.82,0.00011095,2]
[348187362,1736373048797,-531.7,0.00011095,2]
[348187363,1736373048807,-502.63,0.00011095,2]
[348187364,1736373048817,-500.0,0.00011095,2]
[348187365,1736373048827,-2001.01,0.00011095,2]
[348187366,1736373048837,-500.0,0.00011095,2]
[348187367,1736373048846,-601.12,0.00011095,2]
[348187369,1736373048855,-1086.73,0.00011095,2]
[348187371,1736373048865,-500.0,0.00011095,2]
[348187373,1736373048875,-500.0,0.00011095,2]
[348187375,1736373048886,-838.08,0.00011095,2]
[348187377,1736373048896,-1215.79,0.00011095,2]
[348187379,1736373048907,-2411.54,0.00011095,2]
[348187381,1736373048917,-500.0,0.00011095,2]
[348187383,1736373048927,-500.0,0.00011095,2]
[348187385,1736373048936,-828.72,0.00011133,2]
[348187387,1736373048946,-943.03,0.00011133,2]
[348187389,1736373048956,-887.98,0.00011133,2]
[348187391,1736373048965,-1912.69,0.00011133,2]
[348187393,1736373048975,-920.84,0.00011134,2]
[348187396,1736373048985,-1384.54,0.00011134,2]
[348187398,1736373048996,-655.39,0.00011134,2]
[348187400,1736373049006,-779.62,0.00011134,2]
[348187402,1736373049016,-500.0,0.00011134,2]
[348187404,1736373049025,-979.01,0.00011134,2]
[348187406,1736373049035,-1317.62,0.00011134,2]
[348187408,1736373049045,-794.97,0.00011134,2]
[348187410,1736373049054,-509.56,0.00011134,2]
[348187411,1736373049064,-500.0,0.00011134,2]
[348187414,1736373049073,-500.0,0.00011135,2]
[348187415,1736373049083,-500.0,0.00011135,2]
[348187418,1736373049094,-427.79113237,0.00011135,2]
[348187420,1736373049104,-1917.45,0.00011135,2]
[348187422,1736373049114,-500.0,0.00011232,2]
[348187424,1736373049124,-200.58539655,0.00011233,2]
[348187426,1736373049134,-500.0,0.00011291,2]
[348187428,1736373049144,-673.52,0.00011296,2]
[348187430,1736373049154,-781.77,0.00011296,2]
[348187432,1736373049164,-500.0,0.00011296,2]
[348187434,1736373049175,-500.0,0.00011296,2]
[348187436,1736373049187,-500.0,0.00011296,2]
[348187438,1736373049197,-1535.89,0.00011296,2]
[348187440,1736373049207,-1086.26,0.00011296,2]
[348187442,1736373049216,-7062.9603479,0.00011325,2]
[348187444,1736373049227,-510.997307,0.00011369,2]
[348187446,1736373049237,-516.894415,0.00011369,2]
[348187448,1736373049247,-500.0,0.00011369,2]
[348187450,1736373049257,-711.86,0.00011369,2]
[348187452,1736373049267,-500.0,0.00011369,2]
[348187454,1736373049277,-847.86,0.00011369,2]
[348187455,1736373049286,-1082.62,0.00011369,2]
[348187457,1736373049296,-500.0,0.00011369,2]
[348187459,1736373049306,-500.0,0.00011369,2]
[348187462,1736373049317,-956.78,0.00011369,2]
[348187464,1736373049327,-500.0,0.00011369,2]
[348187466,1736373049337,-500.0,0.00011369,2]
[348187468,1736373049347,-525.92,0.00011369,2]
[348187470,1736373049357,-724.59,0.00011369,2]
[348187472,1736373049367,-502.2,0.00011369,2]
[348187474,1736373049378,-500.0,0.00011369,2]
[348187475,1736373049387,-500.0,0.00011369,2]
[348187477,1736373049397,-547.69,0.00011369,2]
[348187480,1736373049407,-500.0,0.00011369,2]
[348187481,1736373049417,-515.19,0.00011369,2]
[348187483,1736373049427,-1326.09,0.00011369,2]
[348187486,1736373049436,-500.0,0.00011369,2]
[348187487,1736373049446,-576.81,0.00011369,2]
[348187489,1736373049455,-500.0,0.00011369,2]
[348187491,1736373049465,-1220.57,0.00011369,2]
[348187494,1736373049476,-500.0,0.00011369,2]
[348187496,1736373049485,-500.0,0.00011369,2]
[348187498,1736373049495,-561.72,0.00011369,2]
[348187500,1736373049506,-3271.31,0.00011369,2]
[348187502,1736373049516,-264.22421143,0.00011369,2]
[348187504,1736373049527,-500.0,0.00011369,2]
[348187506,1736373049538,-500.0,0.00011369,2]
[348187508,1736373049548,-2474.11,0.00011369,2]
[348187510,1736373049558,-500.0,0.00011369,2]
[348187512,1736373049569,-500.0,0.00011369,2]
[348187514,1736373049579,-500.0,0.00011369,2]
[348187516,1736373049589,-591.38,0.00011369,2]
[348187518,1736373049599,-500.0,0.00011369,2]
[348187520,1736373049609,-500.0,0.00011369,2]
[348187522,1736373049618,-500.0,0.00011369,2]
[348187524,1736373049628,-500.0,0.00011369,2]
[348187526,1736373049639,-500.0,0.00011369,2]
[348187528,1736373049651,-1301.31,0.00011369,2]
[348187530,1736373049661,-500.0,0.00011369,2]
[348187531,1736373049673,-500.0,0.00011369,2]
[348187534,1736373049687,-500.0,0.00011369,2]
[348187536,1736373049699,-500.0,0.00011369,2]
[348187538,1736373049709,-500.0,0.00011369,2]
[348187539,1736373049718,-1723.29,0.00011369,2]
[348187541,1736373049729,-1064.06,0.00011369,2]
[348187544,1736373049739,-500.0,0.00011369,2]
[348187546,1736373049749,-517.5,0.00011369,2]
[348187548,1736373049759,-1073.57,0.00011369,2]
[348187550,1736373049769,-500.0,0.00011369,2]
[348187552,1736373049778,-500.0,0.00011369,2]
[348187554,1736373049789,-2451.19,0.00011369,2]
[348187556,1736373049799,-907.11,0.00011369,2]
[348187558,1736373049808,-500.0,0.00011369,2]
[348187560,1736373049817,-500.0,0.00011369,2]
[348187562,1736373049827,-500.0,0.00011369,2]
[348187564,1736373049837,-616.29,0.00011369,2]
[348187566,1736373049846,-500.0,0.00011369,2]
[348187568,1736373049856,-500.0,0.00011369,2]
[348187570,1736373049865,-609.11,0.00011369,2]
[348187572,1736373049875,-1984.27,0.00011369,2]
[348187574,1736373049885,-514.57,0.00011369,2]
[348187576,1736373049895,-655.42,0.00011369,2]
[348187578,1736373049904,-2999.06,0.00011369,2]
[348187580,1736373049914,-500.0,0.00011369,2]
[348187582,1736373049924,-500.0,0.00011369,2]
[348187584,1736373049933,-1250.12,0.00011369,2]
[348187586,1736373049943,-2222.82,0.00011369,2]
[348187588,1736373049954,-500.0,0.00011369,2]
[348187590,1736373049963,-500.0,0.00011369,2]
[348187592,1736373049972,-500.0,0.00011369,2]
[348187594,1736373049982,-2328.78,0.00011369,2]
[348187596,1736373049991,-2289.73,0.00011369,2]
[348187598,1736373050001,-500.0,0.00011369,2]
[348187600,1736373050011,-1908.11,0.00011369,2]
[348187602,1736373050020,-607.08,0.00011369,2]
[348187604,1736373050030,-537.88,0.00011369,2]
[348187606,1736373050040,-500.0,0.00011369,2]
[348187608,1736373050049,-500.0,0.00011369,2]
[348187610,1736373050059,-1282.71,0.00011369,2]
[348187612,1736373050068,-1241.02,0.00011369,2]
[348187614,1736373050078,-1035.45,0.00011369,2]
[348187616,1736373050087,-500.0,0.00011369,2]
[348187618,1736373050096,-500.0,0.00011369,2]
[348187620,1736373050105,-744.89,0.00011369,2]
[348187622,1736373050115,-1408.11,0.00011369,2]
[348187624,1736373050126,-755.08,0.00011369,2]
[348187626,1736373050136,-500.0,0.00011369,2]
[348187628,1736373050145,-448.97,0.00011369,2]
[348187630,1736373050156,-533.24,0.00011369,2]
[348187632,1736373050165,-500.0,0.00011369,2]
[348187634,1736373050175,-500.0,0.00011369,2]
[348187636,1736373050188,-755.48,0.00011369,2]
[348187638,1736373050198,-1800.82,0.00011369,2]
[348187640,1736373050207,-531.7,0.00011369,2]
[348187642,1736373050217,-502.63,0.00011369,2]
[348187644,1736373050228,-500.0,0.00011369,2]
[348187646,1736373050238,-2001.01,0.00011369,2]
[348187648,1736373050247,-500.0,0.00011369,2]
[348187650,1736373050258,-601.12,0.00011369,2]
[348187652,1736373050267,-1086.73,0.00011369,2]
[348187654,1736373050278,-500.0,0.00011369,2]
[348187656,1736373050287,-500.0,0.00011369,2]
[348187658,1736373050297,-1215.79,0.00011369,2]
[348187660,1736373050306,-838.08,0.00011369,2]
[348187662,1736373050315,-2411.54,0.00011369,2]
[348187664,1736373050325,-500.0,0.00011369,2]
[348187666,1736373050334,-500.0,0.00011369,2]
[348187668,1736373050344,-200.58539655,0.000114,2]
[348187670,1736373050354,-828.72,0.00011407,2]
[348187672,1736373050363,-943.03,0.00011407,2]
[348187675,1736373050373,-887.98,0.00011407,2]
[348187677,1736373050383,-1912.69,0.00011407,2]
[348187679,1736373050393,-920.84,0.00011408,2]
[348187681,1736373050403,-1384.54,0.00011408,2]
[348187683,1736373050412,-655.39,0.00011408,2]
[348187685,1736373050422,-779.62,0.00011408,2]
[348187687,1736373050431,-979.01,0.00011408,2]
[348187689,1736373050441,-1317.62,0.00011408,2]
[348187691,1736373050451,-794.97,0.00011408,2]
[348187693,1736373050461,-509.56,0.00011408,2]
[348187700,1736373050522,-500.0,0.00011408,2]
[348187702,1736373050532,-500.0,0.00011409,2]
[348187704,1736373050541,-500.0,0.00011409,2]
[348187706,1736373050550,-1917.45,0.00011409,2]
[348187708,1736373050560,-1084.0,0.00011433,2]
[348187710,1736373050569,-427.79113237,0.00011463,2]
[348187712,1736373050579,-500.0,0.00011506,2]
[348187714,1736373050588,-2751.0,0.00011507,2]
[348187716,1736373050596,-200.58539655,0.00011567,2]
[348187718,1736373050606,-673.52,0.0001157,2]
[348187720,1736373050615,-781.77,0.0001157,2]
[348187722,1736373050624,-500.0,0.0001157,2]
[348187724,1736373050634,-500.0,0.0001157,2]
[348187726,1736373050643,-500.0,0.0001157,2]
[348187728,1736373050652,-1535.89,0.0001157,2]
[348187730,1736373050662,-1086.26,0.0001157,2]
[348187732,1736373050671,-510.997307,0.00011643,2]
[348187734,1736373050680,-516.894415,0.00011643,2]
[348187736,1736373050689,-500.0,0.00011643,2]
[348187738,1736373050698,-711.86,0.00011643,2]
[348187740,1736373050707,-500.0,0.00011643,2]
[348187742,1736373050716,-847.86,0.00011643,2]
[348187744,1736373050725,-1082.62,0.00011643,2]
[348187746,1736373050734,-500.0,0.00011643,2]
[348187748,1736373050743,-160.497374,0.00011643,2]
[348187750,1736373050751,-500.0,0.00011643,2]
[348187752,1736373050760,-956.78,0.00011643,2]
[348187754,1736373050770,-500.0,0.00011643,2]
[348187756,1736373050778,-500.0,0.00011643,2]
[348187758,1736373050788,-525.92,0.00011643,2]
[348187760,1736373050800,-724.59,0.00011643,2]
[348187762,1736373050809,-502.2,0.00011643,2]
[348187764,1736373050818,-500.0,0.00011643,2]
[348187766,1736373050828,-500.0,0.00011643,2]
[348187768,1736373050837,-547.69,0.00011643,2]
[348187770,1736373050847,-500.0,0.00011643,2]
[348187772,1736373050856,-515.19,0.00011643,2]
[348187774,1736373050866,-1326.09,0.00011643,2]
[348187776,1736373050876,-500.0,0.00011643,2]
[348187778,1736373050885,-576.81,0.00011643,2]
[348187780,1736373050895,-500.0,0.00011643,2]
[348187782,1736373050903,-1220.57,0.00011643,2]
[348187784,1736373050913,-500.0,0.00011643,2]
[348187786,1736373050922,-500.0,0.00011643,2]
[348187788,1736373050931,-561.72,0.00011643,2]
[348187790,1736373050940,-3271.31,0.00011643,2]
[348187792,1736373050950,-500.0,0.00011643,2]
[348187794,1736373050959,-500.0,0.00011643,2]
[348187795,1736373050968,-2474.11,0.00011643,2]
[348187796,1736373050977,-500.0,0.00011643,2]
[348187797,1736373050986,-500.0,0.00011643,2]
[348187798,1736373050995,-500.0,0.00011643,2]
[348187799,1736373051004,-591.38,0.00011643,2]
[348187800,1736373051014,-500.0,0.00011643,2]
[348187801,1736373051023,-500.0,0.00011643,2]
[348187802,1736373051032,-500.0,0.00011643,2]
[348187804,1736373051042,-500.0,0.00011643,2]
[348187806,1736373051051,-500.0,0.00011643,2]
[348187808,1736373051060,-1301.31,0.00011643,2]
[348187810,1736373051069,-500.0,0.00011643,2]
[348187812,1736373051078,-500.0,0.00011643,2]
[348187814,1736373051087,-500.0,0.00011643,2]
[348187816,1736373051097,-500.0,0.00011643,2]
[348187818,1736373051105,-500.0,0.00011643,2]
[348187820,1736373051115,-1723.29,0.00011643,2]
[348187822,1736373051124,-1064.06,0.00011643,2]
[348187824,1736373051133,-500.0,0.00011643,2]
[348187826,1736373051142,-517.5,0.00011643,2]
[348187828,1736373051151,-1073.57,0.00011643,2]
[348187830,1736373051160,-500.0,0.00011643,2]
[348187832,1736373051169,-500.0,0.00011643,2]
[348187834,1736373051180,-2451.19,0.00011643,2]
[348187836,1736373051189,-907.11,0.00011643,2]
[348187838,1736373051199,-500.0,0.00011643,2]
[348187839,1736373051208,-500.0,0.00011643,2]
[348187842,1736373051217,-494.85046635,0.00011643,2]
[348187844,1736373051226,-500.0,0.00011643,2]
[348187846,1736373051235,-500.0,0.00011643,2]
[348187847,1736373051244,-609.11,0.00011643,2]
[348187849,1736373051256,-1984.27,0.00011643,2]
[348187851,1736373051265,-514.57,0.00011643,2]
[348187853,1736373051274,-655.42,0.00011643,2]
[348187855,1736373051283,-2999.06,0.00011643,2]
[348187857,1736373051293,-500.0,0.00011643,2]
[348187859,1736373051302,-432.72,0.00011643,2]
[348187861,1736373051311,-1250.12,0.00011643,2]
[348187863,1736373051320,-2222.82,0.00011643,2]
[348187865,1736373051329,-500.0,0.00011643,2]
[348187867,1736373051339,-500.0,0.00011643,2]
[348187869,1736373051348,-500.0,0.00011643,2]
[348187871,1736373051357,-2328.78,0.00011643,2]
[348187873,1736373051366,-2289.73,0.00011643,2]
[348187875,1736373051375,-500.0,0.00011643,2]
[348187877,1736373051383,-1908.11,0.00011643,2]
[348187879,1736373051392,-607.08,0.00011643,2]
[348187881,1736373051402,-500.0,0.00011643,2]
[348187883,1736373051411,-1282.71,0.00011643,2]
[348187885,1736373051420,-1241.02,0.00011643,2]
[348187887,1736373051429,-1035.45,0.00011643,2]
[348187889,1736373051437,-500.0,0.00011643,2]
[348187891,1736373051446,-500.0,0.00011643,2]
[348187893,1736373051455,-744.89,0.00011643,2]
[348187895,1736373051464,-1408.11,0.00011643,2]
[348187897,1736373051474,-755.08,0.00011643,2]
[348187899,1736373051483,-500.0,0.00011643,2]
[348187901,1736373051491,-533.24,0.00011643,2]
[348187902,1736373051500,-500.0,0.00011643,2]
[348187904,1736373051508,-417.315,0.00011643,2]
[348187906,1736373051517,-755.48,0.00011643,2]
[348187908,1736373051526,-1800.82,0.00011643,2]
[348187910,1736373051535,-531.7,0.00011643,2]
[348187912,1736373051544,-502.63,0.00011643,2]
[348187914,1736373051554,-509.27079329,0.00011643,2]
[348187916,1736373051562,-500.0,0.00011643,2]
[348187918,1736373051571,-601.12,0.00011643,2]
[348187920,1736373051580,-2001.01,0.00011643,2]
[348187922,1736373051590,-1086.73,0.00011643,2]
[348187924,1736373051599,-500.0,0.00011643,2]
[348187926,1736373051608,-500.0,0.00011643,2]
[348187929,1736373051617,-1215.79,0.00011643,2]
[348187931,1736373051627,-838.08,0.00011643,2]
[348187932,1736373051636,-2411.54,0.00011643,2]
[348187934,1736373051645,-500.0,0.00011643,2]
[348187936,1736373051654,-500.0,0.00011643,2]
[348187938,1736373051663,-1000.0,0.00011658,2]
[348187940,1736373051672,-375.51,0.00011658,2]
[348187942,1736373051681,-2244.35,0.00011681,2]
[348187944,1736373051690,-828.72,0.00011681,2]
[348187946,1736373051699,-943.03,0.00011681,2]
[348187948,1736373051708,-887.98,0.00011681,2]
[348187950,1736373051716,-1912.69,0.00011681,2]
[348187952,1736373051725,-920.84,0.00011682,2]
[348187954,1736373051734,-1384.54,0.00011682,2]
[348187956,1736373051743,-655.39,0.00011682,2]
[348187958,1736373051752,-779.62,0.00011682,2]
[348187960,1736373051761,-979.01,0.00011682,2]
[348187962,1736373051770,-1317.62,0.00011682,2]
[348187964,1736373051779,-794.97,0.00011682,2]
[348187966,1736373051788,-509.56,0.00011682,2]
[348187968,1736373051797,-500.0,0.00011682,2]
[348187970,1736373051806,-500.0,0.00011683,2]
[348187972,1736373051815,-500.0,0.00011683,2]
[348187974,1736373051824,-1917.45,0.00011683,2]
[348187976,1736373051833,-634.0,0.00011686,2]
[348187978,1736373051842,-566.0,0.00011686,2]
[348187980,1736373051851,-3776.0,0.00011686,2]
[348187982,1736373051861,-679.569,0.00011686,2]
[348187984,1736373051870,-1172.294,0.00011686,2]
[348187986,1736373051879,-524.429,0.00011686,2]
[348187988,1736373051888,-489.411,0.00011686,2]
[348187990,1736373051897,-1173.0,0.00011686,2]
[348187992,1736373051906,-3895.0,0.00011686,2]
[348187994,1736373051915,-150.0,0.00011686,2]
[348187996,1736373051924,-9621.0,0.00011686,2]
[348187998,1736373051933,-475.0,0.000117,2]
[348188000,1736373051942,-272.0,0.000117,2]
[348188002,1736373051951,-200.58539655,0.00011733,2]
[348188004,1736373051959,-435.68,0.0001178,2]
[348188006,1736373051968,-500.0,0.0001178,2]
[348188008,1736373051977,-500.0,0.0001178,2]
[348188010,1736373051987,-500.0,0.0001178,2]
[348188012,1736373051996,-200.0,0.000118,2]
[348188014,1736373052006,-673.52,0.00011844,2]
[348188016,1736373052015,-781.77,0.00011844,2]
[348188019,1736373052025,-259.95963893,0.00011844,2]
[348188021,1736373052034,-500.0,0.00011844,2]
[348188023,1736373052045,-500.0,0.00011844,2]
[348188025,1736373052054,-1535.89,0.00011844,2]
[348188027,1736373052063,-1086.26,0.00011844,2]
[348188029,1736373052072,-27484.15696936,0.0001188,2]
[348188031,1736373052082,-500.0,0.00011887,2]
[348188033,1736373052092,-967.9,0.00011887,2]
[348188035,1736373052101,-500.0,0.00011887,2]
[348188037,1736373052110,-500.0,0.00011887,2]
[348188039,1736373052119,-500.0,0.00011887,2]
[348188041,1736373052130,-500.0,0.00011887,2]
[348188043,1736373052140,-878.49,0.00011887,2]
[348188045,1736373052150,-1106.74,0.00011887,2]
[348188047,1736373052159,-500.0,0.00011887,2]
[348188049,1736373052168,-713.96,0.00011887,2]
[348188051,1736373052179,-1463.22,0.00011887,2]
[348188053,1736373052190,-4522.07,0.00011887,2]
[348188055,1736373052199,-500.0,0.00011887,2]
[348188057,1736373052208,-798.12,0.00011887,2]
[348188059,1736373052218,-200.58539655,0.000119,2]
[348188061,1736373052227,-500.0,0.00011915,2]
[348188063,1736373052236,-510.997307,0.00011917,2]
[348188065,1736373052246,-516.894415,0.00011917,2]
[348188067,1736373052256,-500.0,0.00011917,2]
[348188069,1736373052265,-711.86,0.00011917,2]
[348188071,1736373052274,-500.0,0.00011917,2]
[348188073,1736373052284,-847.86,0.00011917,2]
[348188075,1736373052294,-1082.62,0.00011917,2]
[348188077,1736373052303,-500.0,0.00011917,2]
[348188079,1736373052313,-500.0,0.00011917,2]
[348188081,1736373052322,-956.78,0.00011917,2]
[348188083,1736373052331,-500.0,0.00011917,2]
[348188085,1736373052340,-500.0,0.00011917,2]
[348188087,1736373052350,-525.92,0.00011917,2]
[348188089,1736373052359,-724.59,0.00011917,2]
[348188091,1736373052368,-502.2,0.00011917,2]
[348188093,1736373052378,-500.0,0.00011917,2]
[348188095,1736373052388,-500.0,0.00011917,2]
[348188097,1736373052398,-547.69,0.00011917,2]
[348188099,1736373052407,-515.19,0.00011917,2]
[348188101,1736373052416,-1326.09,0.00011917,2]
[348188103,1736373052425,-500.0,0.00011917,2]
[348188105,1736373052434,-576.81,0.00011917,2]
[348188107,1736373052443,-500.0,0.00011917,2]
[348188109,1736373052452,-1220.57,0.00011917,2]
[348188111,1736373052461,-500.0,0.00011917,2]
[348188113,1736373052470,-561.72,0.00011917,2]
[348188115,1736373052480,-3271.31,0.00011917,2]
[348188117,1736373052489,-500.0,0.00011917,2]
[348188119,1736373052499,-500.0,0.00011917,2]
[348188121,1736373052508,-2474.11,0.00011917,2]
[348188123,1736373052517,-500.0,0.00011917,2]
[348188125,1736373052527,-500.0,0.00011917,2]
[348188127,1736373052536,-591.38,0.00011917,2]
[348188129,1736373052546,-500.0,0.00011917,2]
[348188131,1736373052555,-500.0,0.00011917,2]
[348188132,1736373052564,-500.0,0.00011917,2]
[348188133,1736373052573,-500.0,0.00011917,2]
[348188134,1736373052583,-1301.31,0.00011917,2]
[348188135,1736373052592,-500.0,0.00011917,2]
[348188136,1736373052602,-500.0,0.00011917,2]
[348188137,1736373052612,-500.0,0.00011917,2]
[348188138,1736373052622,-500.0,0.00011917,2]
[348188139,1736373052635,-500.0,0.00011917,2]
[348188140,1736373052645,-1723.29,0.00011917,2]
[348188141,1736373052654,-1064.06,0.00011917,2]
[348188142,1736373052663,-500.0,0.00011917,2]
[348188143,1736373052672,-517.5,0.00011917,2]
[348188144,1736373052682,-500.0,0.00011917,2]
[348188145,1736373052691,-1073.57,0.00011917,2]
[348188146,1736373052701,-500.0,0.00011917,2]
[348188147,1736373052711,-2451.19,0.00011917,2]
[348188148,1736373052721,-907.11,0.00011917,2]
[348188149,1736373052731,-500.0,0.00011917,2]
[348188150,1736373052741,-500.0,0.00011917,2]
[348188151,1736373052750,-500.0,0.00011917,2]
[348188152,1736373052760,-609.11,0.00011917,2]
[348188153,1736373052770,-1984.27,0.00011917,2]
[348188154,1736373052780,-514.57,0.00011917,2]
[348188155,1736373052790,-655.42,0.00011917,2]
[348188156,1736373052799,-2999.06,0.00011917,2]
[348188157,1736373052809,-500.0,0.00011917,2]
[348188158,1736373052818,-1250.12,0.00011917,2]
[348188159,1736373052828,-2222.82,0.00011917,2]
[348188160,1736373052838,-500.0,0.00011917,2]
[348188161,1736373052847,-500.0,0.00011917,2]
[348188162,1736373052857,-375.12,0.00011917,2]
[348188163,1736373052866,-2328.78,0.00011917,2]
[348188164,1736373052880,-2289.73,0.00011917,2]
[348188165,1736373052889,-500.0,0.00011917,2]
[348188166,1736373052899,-1908.11,0.00011917,2]
[348188167,1736373052909,-607.08,0.00011917,2]
[348188168,1736373052918,-500.0,0.00011917,2]
[348188169,1736373052928,-1282.71,0.00011917,2]
[348188170,1736373052938,-1241.02,0.00011917,2]
[348188171,1736373052948,-1035.45,0.00011917,2]
[348188172,1736373052957,-500.0,0.00011917,2]
[348188173,1736373052967,-500.0,0.00011917,2]
[348188174,1736373052976,-744.89,0.00011917,2]
[348188175,1736373052986,-1408.11,0.00011917,2]
[348188176,1736373052995,-755.08,0.00011917,2]
[348188177,1736373053006,-500.0,0.00011917,2]
[348188178,1736373053016,-500.0,0.00011917,2]
[348188179,1736373053025,-533.24,0.00011917,2]
[348188180,1736373053035,-755.48,0.00011917,2]
[348188181,1736373053045,-1800.82,0.00011917,2]
[348188182,1736373053054,-531.7,0.00011917,2]
[348188183,1736373053064,-502.63,0.00011917,2]
[348188184,1736373053073,-500.0,0.00011917,2]
[348188185,1736373053083,-601.12,0.00011917,2]
[348188186,1736373053093,-2001.01,0.00011917,2]
[348188187,1736373053103,-1086.73,0.00011917,2]
[348188188,1736373053112,-500.0,0.00011917,2]
[348188189,1736373053122,-500.0,0.00011917,2]
[348188190,1736373053131,-1215.79,0.00011917,2]
[348188191,1736373053140,-838.08,0.00011917,2]
[348188192,1736373053150,-2411.54,0.00011917,2]
[348188193,1736373053159,-500.0,0.00011917,2]
[348188194,1736373053169,-500.0,0.00011917,2]
[348188195,1736373053179,-264.86,0.00011924,2]
[348188196,1736373053190,-828.72,0.00011955,2]
[348188197,1736373053199,-943.03,0.00011955,2]
[348188198,1736373053208,-887.98,0.00011955,2]
[348188199,1736373053218,-1912.69,0.00011955,2]
[348188200,1736373053228,-920.84,0.00011956,2]
[348188201,1736373053238,-1384.54,0.00011956,2]
[348188202,1736373053247,-655.39,0.00011956,2]
[348188203,1736373053258,-779.62,0.00011956,2]
[348188204,1736373053268,-979.01,0.00011956,2]
[348188205,1736373053277,-1317.62,0.00011956,2]
[348188206,1736373053287,-794.97,0.00011956,2]
[348188207,1736373053296,-509.56,0.00011956,2]
[348188208,1736373053306,-500.0,0.00011956,2]
[348188209,1736373053315,-500.0,0.00011957,2]
[348188210,1736373053324,-500.0,0.00011957,2]
[348188211,1736373053334,-1917.45,0.00011957,2]
[348188212,1736373053343,-250.0,0.00012,2]
[348188213,1736373053352,-90585.19089242,0.00012,2]
[348188214,1736373053362,-1267.5684007,0.00012,2]
[348188215,1736373053371,-1217.6669552,0.00012053,2]
[348188216,1736373053380,-200.0,0.00012055,2]
[348188217,1736373053390,-200.58539655,0.00012067,2]
[348188218,1736373053399,-673.52,0.00012118,2]